Cogmind - Beta 10.2 @@@ ROGUE MODE // 2021.07.13 @ 11:28:16 Player: Demise Result: Destroyed by 8R-AWN with 8R-AWN's Boregun Performance ------------- Evolutions (0) 0 Regions Visited (3) 600 Robots Destroyed (60) 300 Value Destroyed (654) 654 Prototype IDs (36) 720 Alien Tech Used (0) 0 Bonus (249) 249 TOTAL SCORE: 2523 Bonus ------- Aligned with FarCom 300 Friendly Fire -51 Cogmind --------- Core Integrity 0/250 Matter 219/300 Energy 208/250 System Corruption 5% Temperature Cool (0) Movement Treading (160) Location -10/Exiles Parts ------- > --- POWER (1) -------- Ion Engine > --- PROPULSION (2) --- Light Treads > --- UTILITY (2) ------ Actuator Array Improved Light Armor Plating > --- WEAPON (2) ------- Mining Claw Mining Claw > --- INVENTORY (4) ---- Light Angular Momentum Engine Light Treads High-capacity Storage Unit Improved Light Armor Plating Peak State ------------ > --- POWER ------------ Light Angular Momentum Engine > --- PROPULSION ------- Light Treads Light Treads > --- UTILITY ---------- High-capacity Storage Unit High-capacity Storage Unit > --- WEAPON ----------- Beamcaster Heavy Particle Cannon > --- INVENTORY -------- Ion Engine Light Treads Light Treads Combat Airjet Combat Airjet VTOL Module Medium Storage Unit High-capacity Storage Unit High-capacity Matter Pod Actuator Array Improved Light Armor Plating Improved Light Armor Plating Hacking Suite Improved Trap Extractor Small Laser Grenade Launcher Datajack Heavy Flail Mining Claw Mining Claw [Rating: 21] Favorites ----------- Power Light Nuclear Core Engine Light Angular Momentum Engine Power Core Light Nuclear Core Propulsion Light Treads Treads Light Treads Utility High-capacity Storage Unit Device Actuator Array Storage High-capacity Storage Unit Protection Improved Light Armor Plating Weapon Assault Rifle Energy Gun Small Laser Energy Cannon Heavy Particle Cannon Ballistic Gun Assault Rifle Launcher Grenade Launcher Special Weapon Mining Laser Slashing Weapon Mining Claw Special Melee Weapon Datajack Build | -11 -10 -10 -10 ------- Run | Scr Mat Min Exi Slots Evolved . | . . . . Power . | . . . . Propulsion . | . . . . Utility . | . . . . Weapon . | . . . . Parts Attached 39 | 6 18 6 9 Power 6 | 1 2 2 1 Engine 5 | 1 1 2 1 Core 1 | . 1 . . Reactor . | . . . . Propulsion 6 | 2 4 . . Treads 6 | 2 4 . . Leg . | . . . . Wheel . | . . . . Hover . | . . . . Flight . | . . . . Utility 8 | 1 5 . 2 Device 1 | . . . 1 Storage 6 | 1 5 . . Processor . | . . . . Hackware . | . . . . Protection 1 | . . . 1 Artifact . | . . . . Weapon 19 | 2 7 4 6 Energy Gun 6 | . 3 3 . Energy Cannon 1 | . . 1 . Ballistic Gun 3 | 2 1 . . Ballistic Cannon . | . . . . Launcher 2 | . . . 2 Special Weapon 1 | . 1 . . Impact Weapon . | . . . . Slashing Weapon 3 | . . . 3 Piercing Weapon . | . . . . Special Melee Weapon 3 | . 2 . 1 Unidentified Prototypes . | . . . . Parts Lost 5 | . 1 3 1 Power 1 | . . 1 . Propulsion 1 | . . . 1 Utility . | . . . . Weapon 3 | . 1 2 . Highest Loss Streak 2 | . 1 2 1 Average Slot Usage (%) 97 | . 99 96 95 Engine 7 | . 5 6 14 Core 5 | . 8 5 . Treads 27 | . 28 28 27 Storage 26 | . 27 28 20 Protection 1 | . . . 6 Energy Gun 8 | . 7 17 . Energy Cannon 2 | . . 6 . Ballistic Gun 9 | . 19 2 . Slashing Weapon 3 | . . . 14 Special Melee Weapon 2 | . . . 6 Naked Turns . | . . . . Heaviest Build 84 | 13 73 84 84 Greatest Support 40 | 40 40 40 40 Greatest Overweight (x) 2 | . 1 2 2 Average Overweight (x) . | . . 1 1 Largest Inventory Capacity 20 | 6 20 20 20 Average Capacity 16 | 5 17 20 16 Most Carried 20 | 5 20 20 20 Average Carried 15 | 4 16 19 14 Final Capacity 20 | 6 20 20 4 Final Carried 20 | 5 20 20 4 Class Distribution -------------------- 65% | Hauler-Mutant 34% | Mutant Dominant Class ---------------- Hauler-Mutant | -10/Materials Hauler-Mutant | -10/Mines Hauler-Mutant | -10/Exiles Resources | -11 -10 -10 -10 ----------- Run | Scr Mat Min Exi Matter Collected 1741 | 606 913 115 107 Remotely . | . . . . Salvage Created 2109 | 389 1420 295 5 Parts 119 | 33 73 13 . Haulers Intercepted 2 | . 2 . . Recyclers Shooed 7 | . 6 1 . Parts Field Recycled . | . . . . Retrieved Matter . | . . . . Parts Self-Destructed . | . . . . Prevented . | . . . . Kills | -11 -10 -10 -10 ------- Run | Scr Mat Min Exi Combat Hostiles Destroyed 15 | . 6 6 3 Guns 11 | . 6 5 . Cannons 1 | . . 1 . AOE 3 | . . . 3 Classes Destroyed 11 | 3 5 2 1 Worker 18 | 4 14 . . Builder 3 | . 3 . . Tunneler 11 | 9 1 1 . Hauler 2 | . 2 . . Recycler 10 | 1 8 1 . Mechanic 1 | . 1 . . Watcher 3 | . 3 . . Swarmer 3 | . . 3 . Grunt 8 | . 6 2 . Sentry 1 | . . 1 . Assembled 3 | . . . 3 Best Kill Streak 8 | 4 8 3 3 Combat Bots Only 3 | . 1 3 3 Max Kills in Single Turn 1 | 1 1 1 1 Gunslinging . | . . . . Exploded 1 | . . . 1 Melee . | . . . . Uniques/NPCs Destroyed . | . . . . Combat | -11 -10 -10 -10 -------- Run | Scr Mat Min Exi Damage Taken 1102 | . 344 582 176 Core 259 | . 53 150 56 Absorbed by Shields . | . . . . Core Remaining (%) 100 | 100 . . . Volleys Fired 179 | 38 113 24 4 Largest 2 | 2 2 2 1 Hottest 150 | 40 100 150 30 Shots Fired 349 | 76 221 47 5 Gun 329 | 76 220 32 1 Cannon 15 | . . 15 . Launcher 4 | . . . 4 Special 1 | . 1 . . Kinetic 235 | 76 150 9 . Thermal 110 | . 71 38 1 Explosive 4 | . . . 4 Electromagnetic . | . . . . Robot Hit Streak 14 | 7 14 12 10 Robot Miss Streak 4 | 4 4 2 . Penetration Max . | . . . . Secondary Targets . | . . . . Shots Hit Robots 227 | 42 141 32 12 Core Hits 88 | 14 56 11 7 Critical Hits 1 | 1 . . . Critical Kills . | . . . . Critical Parts Destroyed 1 | 1 . . . Melee Attacks 13 | . . . 13 Impact . | . . . . Slashing 9 | . . . 9 Piercing . | . . . . Sneak Attacks 4 | . . . 4 Combat Hostiles . | . . . . Follow-up Attacks 3 | . . . 3 Damage Inflicted 3355 | 596 1810 644 305 Guns 2814 | 596 1810 408 . Cannons 231 | . . 231 . Explosions 167 | . . . 167 Melee 138 | . . . 138 Ramming 5 | . . 5 . Kinetic 1867 | 596 1210 61 . Thermal 1178 | . 600 578 . Explosive 167 | . . . 167 Electromagnetic . | . . . . Impact . | . . . . Slashing 138 | . . . 138 Piercing . | . . . . Highest Corruption 5 | . . 5 5 Average Corruption 5 | . . 5 5 Corruption Purged . | . . . . Effects 43 | . . 20 23 Message Errors 5 | . . 1 4 Matter Fused 13 | . . 7 6 Heat Flow Errors 6 | . . 3 3 Energy Discharges 7 | . . 4 3 Parts Rejected 2 | . . 1 1 Data Loss (minor) 4 | . . 1 3 Data Loss (major) 1 | . . . 1 Misfires 1 | . . . 1 Targeting Errors 3 | . . 2 1 Weapon Failures 1 | . . 1 . Overload Shots . | . . . . Overflow Damage 20 | . . 5 15 Projectiles 5 | . . 5 . Explosions 15 | . . . 15 Melee . | . . . . Knockbacks . | . . . . Impact . | . . . . Kinetic . | . . . . Secondary . | . . . . Self-Inflicted Damage . | . . . . Shots . | . . . . Rammed 1 | . . 1 . Targets Rammed 1 | . . 1 . Kicked . | . . . . Crushed . | . . . . Highest Temperature 306 | 6 63 306 263 Average Temperature 56 | 6 18 101 101 Received Heat Transfer 276 | . 198 78 . Effects 2 | . . 2 . Interference 2 | . . 2 . Siege Activations . | . . . . Robots Corrupted . | . . . . Combat Hostiles . | . . . . Parts Fried . | . . . . Impact Corruptions . | . . . . Robots Melted . | . . . . Combat Hostiles . | . . . . Parts Melted 2 | . . 2 . Heat Transferred 2353 | . 1375 978 . Parts Sabotaged . | . . . . Parts Stolen . | . . . . Parts Stripped . | . . . . Power Chain Reactions . | . . . . Missiles Intercepted . | . . . . Alert | -11 -10 -10 -10 ------- Run | Scr Mat Min Exi Peak Influence 212 | 65 212 101 . Initial 26 | . 3 26 . Average 44 | 28 48 45 . Maximum Alert Level 1 | . 1 . . Low Security (%) 98 | 100 96 100 . Level 1 1 | . 3 . . Level 2 . | . . . . Level 3 . | . . . . Level 4 . | . . . . Level 5 . | . . . . High Security . | . . . . Max Security . | . . . . Squads Dispatched 1 | . 1 . . Investigation 1 | . 1 . . Extermination . | . . . . Reinforcement . | . . . . Assault . | . . . . Garrison . | . . . . Intercept . | . . . . Construction Impeded . | . . . . Haulers Reinforced . | . . . . Stealth | -11 -10 -10 -10 --------- Run | Scr Mat Min Exi Distress Signals 1 | . 1 . . Communications Jammed . | . . . . Distress Signals . | . . . . Times Spotted 36 | . 21 10 5 Peak Tracking Total 9 | . 5 3 9 Tactical Retreats 3 | . 3 . . Traps | -11 -10 -10 -10 ------- Run | Scr Mat Min Exi Traps Triggered . | . . . . Indirectly . | . . . . Trap Hack Attempts 113 | . 113 . . Triggered . | . . . . Disarmed 1 | . 1 . . Reprogrammed 5 | . 5 . . Reused . | . . . . Traps Extracted . | . . . . Installed . | . . . . Triggered . | . . . . Exploded 2 | . . . 2 Machines | -11 -10 -10 -10 ---------- Run | Scr Mat Min Exi Machines Disabled 7 | . 2 1 4 Max in Single Turn 2 | . 1 1 2 Machines Sabotaged . | . . . . Garrisons Compromised . | . . . . Overloaded Fab Kills . | . . . . Fab Network Shutdowns . | . . . . Hacking | -11 -10 -10 -10 --------- Run | Scr Mat Min Exi Machines Accessed 13 | . 9 2 2 Terminals 8 | . 7 1 . Fabricators . | . . . . Repair Stations 1 | . 1 . . Recycling Units 1 | . 1 . . Scanalyzers . | . . . . Garrison Access . | . . . . Total Hacks 37 | . 31 4 2 Successful 22 | . 18 2 2 Failed 14 | . 12 2 . Catastrophic 1 | . . 1 . Database Lockouts 1 | . 1 . . Manual 32 | . 28 3 1 Terminals 27 | . 24 3 . Fabricators . | . . . . Repair Stations 1 | . 1 . . Recycling Units 6 | . 6 . . Scanalyzers . | . . . . Garrison Access . | . . . . Terminal Hacks 11 | . 7 2 2 Record 1 | . . . 1 Part Schematic 1 | . . 1 . Robot Analysis 3 | . 3 . . Open Door 1 | . . 1 . Level Access Points 1 | . 1 . . Branch Access Points 1 | . 1 . . Terminal Index 1 | . 1 . . Zone Layout 1 | . 1 . . EX-Prototype ID Bank 1 | . . . 1 Fabricator Hacks . | . . . . Repair Station Hacks . | . . . . Recycling Unit Hacks 1 | . 1 . . Retrieve Components 1 | . 1 . . Scanalyzer . | . . . . Garrison Access Hacks . | . . . . Unauthorized Hacks 10 | . 10 . . Terminals 6 | . 6 . . Track 1 | . 1 . . Assimilate 1 | . 1 . . Botnet 4 | . 4 . . Fabricators . | . . . . Repair Stations . | . . . . Recycling Units 4 | . 4 . . Reject 1 | . 1 . . Recyclers 1 | . 1 . . Mask 1 | . 1 . . Tunnel 1 | . 1 . . Scanalyzers . | . . . . Garrison Access . | . . . . Data Cores Recovered . | . . . . Used . | . . . . Hacking Detections 8 | . 7 1 . Full Trace Events 4 | . 3 1 . Feedback Events . | . . . . Feedback Blocked . | . . . . Robot Schematics Acquired . | . . . . Robots Built . | . . . . Matter . | . . . . Time . | . . . . Total Robot Build Rating . | . . . . Part Schematics Acquired 1 | . . 1 . Parts Built . | . . . . Matter . | . . . . Time . | . . . . Total Part Build Rating . | . . . . Parts Repaired . | . . . . Time . | . . . . Parts Recycled . | . . . . Recycled Matter . | . . . . Retrieved Matter . | . . . . Retrieved Components 10 | . 10 . . Parts Scanalyzed . | . . . . Part Schematics Acquired . | . . . . Parts Damaged . | . . . . Bothacking | -11 -10 -10 -10 ------------ Run | Scr Mat Min Exi Used RIF Installer . | . . . . Robots Hacked 4 | . . . 4 Non-combat 3 | . . . 3 Combat 1 | . . . 1 Robot Hacks Applied 4 | . . . 4 parse_system 4 | . . . 4 Relay Couplers Released . | . . . . Robots Rewired . | . . . . Allies Hacked . | . . . . Hacks Repelled . | . . . . Allies | -11 -10 -10 -10 -------- Run | Scr Mat Min Exi Total Allies 4 | . 1 3 . Largest Group 3 | . 1 3 . Highest-Rated Group 40 | . 10 40 . Highest-Rated Ally 16 | . 10 16 . Total Orders 6 | . 6 . . STAY 3 | . 3 . . FOLLOW 3 | . 3 . . Ally Attacks 16 | . . 16 . Total Damage 190 | . . 190 . Kills 3 | . . 3 . Allies Corrupted . | . . . . Allies Melted . | . . . . Intel | -11 -10 -10 -10 ------- Run | Scr Mat Min Exi Robot Analysis Total 3 | . 3 . . Derelict Logs Recovered 2 | . . 2 . Drone Launches . | . . . . Drone Recoveries . | . . . . Exploration | -11 -10 -10 -10 ------------- Run | Scr Mat Min Exi Turns Passed 4840 | 499 2062 1233 1046 Spaces Moved 2132 | 202 799 591 540 Core 2 | 2 . . . Treads 2130 | 200 799 591 540 Legs . | . . . . Wheels . | . . . . Hover . | . . . . Flight . | . . . . Fastest Speed 50 | 50 160 180 160 Average Speed 179 | 158 176 188 180 Slowest Speed 200 | 160 180 200 200 Overloaded Moves . | . . . . Propulsion Burnouts . | . . . . Robots Hopped . | . . . . Cave-ins Triggered 1 | . . 1 . Exploration Rate (%) 68 | 9 97 98 71 Regions Visited 3 Branch Regions 2 Pre-discovered Areas 3 | . 1 1 1 Known Exits Taken 1 | . 1 . . Unknown Exits Taken 2 | 1 . 1 . Scrap Searched 1 | . . 1 . Spaces Dug 1 | . 1 . . Terrain Destroyed 20 | . 1 5 14 Melee . | . . . . Projectile 6 | . 1 5 . AOE 14 | . . . 14 Terrain Rammed . | . . . . Walls Destroyed . | . . . . Machines Disabled . | . . . . Actions | -11 -10 -10 -10 --------- Run | Scr Mat Min Exi Total 2792 | 302 1229 664 597 Wait 225 | 50 153 15 7 Move 2129 | 201 798 590 540 Hop . | . . . . Pick Up 43 | 7 20 11 5 Fast Attach 10 | 4 2 4 . Attach 8 | 2 1 2 3 Detach 4 | . 1 1 2 Swap 21 | . 15 . 6 Drop 44 | . 13 11 20 Fire 179 | 38 113 24 4 Melee 10 | . . . 10 Ram . | . . . . Kick . | . . . . Crush 1 | . . 1 . Escape Stasis . | . . . . Rewire 5 | . . 5 . Trap 113 | . 113 . . Miscellaneous . | . . . . Route ------- -11/Scrapyard -10/Materials (discovered 5 exits: *Mat x3 / *Min x2) -10/Mines (discovered 3 exits: *Mat x2 / *Exi) -10/Exiles (discovered 2 exits: [*Min x2]) History --------- Turn | Location | Event 19 | -11/Scrapyard | Discovered new exit (range 16) 500 | -11/Scrapyard | Entered Materials 500 | -10/Materials | Discovered new exit (range 8) 501 | -10/Materials | Build established: Mutant 665 | -10/Materials | Discovered new exit (range 15) 829 | -10/Materials | Discovered new exit (range 10) 908 | -10/Materials | Central database locked down 1001 | -10/Materials | Discovered new exit (range 9) 1443 | -10/Materials | Discovered new exit (range 4) 1462 | -10/Materials | Build established: Hauler-Mutant 1479 | -10/Materials | Identified exit to Mines 1479 | -10/Materials | Identified exit to Materials 2562 | -10/Materials | Entered Mines 2562 | -10/Mines | Accompanied by 1 ally 2606 | -10/Mines | Learned Materials non-interactive machine intel 2696 | -10/Mines | Discovered exit to Materials (range 14) 2714 | -10/Mines | Assisted by bots powering up and referring to "LRC-V3" 2760 | -10/Mines | Met a Derelict who couldn't figure out how to use a Trap Extractor 2981 | -10/Mines | Assembled infested the area 2984 | -10/Mines | Learned Materials emergency access door positions 3054 | -10/Mines | Met 8R-AWN 3076 | -10/Mines | Crushed by falling debris 3076 | -10/Mines | Core integrity fell below 50% 3168 | -10/Mines | Discovered exit to Materials (range 6) 3200 | -10/Mines | Joined a pair of Derelicts in attacking an 0b10 outpost 3279 | -10/Mines | Learned location of Storage (-9) 3512 | -10/Mines | Core integrity fell below 20% 3785 | -10/Mines | Discovered new exit (range 5) 3795 | -10/Mines | Entered Exiles 3821 | -10/Exiles | Discovered new exit (range 15) 3851 | -10/Exiles | Welcomed by 8R-AWN 3880 | -10/Exiles | Met EX-HEX 3976 | -10/Exiles | Met EX-DEC 4028 | -10/Exiles | Learned location of Zion (-6) 4057 | -10/Exiles | Met EX-BIN 4084 | -10/Exiles | Aligned with FarCom system 4086 | -10/Exiles | Given EX-Vault access code 4127 | -10/Exiles | Opened EX-Vault 4171 | -10/Exiles | Warned to stay clear of 0b10 Research branches 4307 | -10/Exiles | Discovered new exit (range 15) 4510 | -10/Exiles | Learned about 8R-AWN's background 4619 | -10/Exiles | Build established: Mutant 4741 | -10/Exiles | Attacked by the Exiles 4841 | -10/Exiles | Destroyed by 8R-AWN with 8R-AWN's Boregun Last Messages --------------- 04834_ Penetrated by HV Slug. 04834_ Critical hit. 04834_ Lgt. Treads destroyed. 04834_ HV Slug penetrates Wall. 04835_ Mining Claw follow-up attack on 8R-AWN. 04835_ System corrupted: Mining Claw targeting data glitched. 04836_ Penetrated by HV Slug. 04836_ HV Slug penetrates Wall. 04836_ Penetrated by HV Slug. 04836_ Critical hit. 04836_ HV Slug penetrates Wall. 04838_ Mining Claw follow-up attack on 8R-AWN. 04839_ Penetrated by HV Slug. 04839_ HV Slug penetrates Wall. 04839_ Penetrated by HV Slug. 04839_ HV Slug penetrates Wall. 04841_ System corrupted: Matter fused (-6). 04841_ HV Slug penetrates Machine. 04841_ Machine disabled. 04841_ Penetrated by HV Slug. Map ----- +----------------------------------------------------+ | ?????????????????????????????????????????????????? | | ?????????????????????????????????????????????????? | | ?????????????????????????????????????????????????? | | ?????????????????????????????????????????????????? | | ?????????????????????????????????????????????????? | | ?????????????????????????????????????????????????? | | ?????????????????????????????????????????????????? | | ?????????????????????????????????????????????????? | | ?????????????????????????????????????????????????? | | ???????????????????????????????????????????????### | | ???????????????????????????????????????????????""" | | #####??????????????????????????????????????????""" | | # ##???????????????????????????????????????#""X" | | #???????????????????????????????????????#" | | < #???????????????????????????????????????#" | | !![!###?????????????????????????????????????#"""" | | ]=!=/ #???????????????????????????????????????"## | | !![ ##?????????????????????????????????????????? | | # / #??????????????????????????????????????????? | | # ##?????????????????????????????????????????? | | ## #????????????#######??????????????????????? | | ?# #######??????#!!! "#??????????????????????? | | ?# #""##?????# "#??????????????????????? | | ?## #?????# !]"#??????????????????????? | | ??##" ##???## "g#????????????####??????? | | ??#"" #####" @#???????????? """?????? | | ??#### ##" " #????????????" """#????? | | ?????## #" ###????????????" #????? | | ??????#"## #?????????????"" #????? | | ??????####### #####?????????"" "#????? | | ????????????### ##????????? ""?????? | | ???????#######" #??????????" "??????? | | ??????# !!""""" ##????????# #??????? | | ??????#! "# ""##???### ###?#### | | ??????#! "## "#####X# #"###""" | | ??????#! ### # % """""" | | ??????# !""""""###?###"# "" """ | | ??????#########??????#### * " " | | ????????????????????????### | | ??????????????????????????### | | ????????????????????????????## | | ?????????????????????????????## | | ??????????????????????????????##" | | ???????????????????????????????#""" | | ??????????????????????????????##" | | ??????????????????????????????#"" ""# | | ?????????????????????????????##""" """## | | ?????????????????????????????#""" """##? | | ?????????????????????????????#""" ""#?? | | ?????????????????????????????#"" #### | +----------------------------------------------------+ Best States ------------- Heat Dissipation 25 Energy Generation 18 Energy Capacity 250 Matter Stores 300 Matter Capacity 300 Sight Range 16 Terrain Scan Density 10 Armor Coverage 150 Evasion (%) 40 Recoil Reduction 2 Item Schematics ----------------- Med. Storage Unit | -10/Mines | Hacked Robot Schematics ------------------ None Fabricated ------------ Nothing Alien Tech Used ----------------- None Achievements -------------- None Challenges ------------ None Game ------ Seed GyrokineticCoilField Manual? 0 Play Time 00:32:45 Cumulative 391.6 hours Start 2021.07.13 @ 10:59:55 End 2021.07.13 @ 11:28:16 Sessions 1 Manual Loads 0 Difficulty Rogue Special Mode None Game No. 319 Rogue 319 Adventurer 0 Explorer 0 Win Type - Total 1 Types 0/0/0/1/0/0/0/0/0 Lore% 70 Gallery% 79 Achievement% 60 Wizard Run 0 Options --------- ASCII 0 Keyboard 1 Movement Numpad Keybinds 0 Fullscreen 1 Font 12/Terminus Map View 83x54 Tactical HUD 1 Map Filters NONE Filters NONE Steam 1 RUN: 66161606-db85-47f0-ae98-02241846e669